fUSD/lending_fUSD_20260531
["ID","MTS","AMOUNT","RATE_DAILY","PERIOD"]
[423531621,1780197042000,-500.0,0.00026431,31]
[423531625,1780197042000,-1026.868,0.00026486,13]
[423531623,1780197042000,-500.0,0.00026484,2]
[423531616,1780197042000,-174.61919141,0.00026362,2]
[423531624,1780197042000,-159.80963633,0.00026486,13]
[423531632,1780197042000,-1546.0,0.0002655,3]
[423531636,1780197042000,-1546.0,0.0002655,3]
[423531637,1780197042000,-1546.0,0.0002655,3]
[423531626,1780197042000,-157.0,0.00026512,2]
[423531628,1780197042000,-157.0,0.00026512,2]
[423531630,1780197042000,-150.0,0.00026533,4]
[423531629,1780197042000,-500.0,0.00026513,31]
[423531634,1780197042000,-1546.0,0.0002655,3]
[423531631,1780197042000,-500.0,0.00026536,2]
[423531633,1780197042000,-1546.0,0.0002655,3]
[423531618,1780197042000,-578.20924308,0.00026362,2]
[423531639,1780197042000,-280.3872819,0.0002655,3]
[423531635,1780197042000,-1546.0,0.0002655,3]
[423531614,1780197042000,-150.0,0.00026337,4]
[423531596,1780197042000,-150.0,0.00025978,4]
[423531611,1780197042000,-150.0,0.00026217,4]
[423531638,1780197042000,-1546.0,0.0002655,3]
[423531588,1780197042000,-9603.6,0.00025786,2]
[423531589,1780197042000,-1384.67,0.00025786,2]
[423531590,1780197042000,-597.85,0.00025786,2]
[423531592,1780197042000,-432.7690859,0.00025802,2]
[423531602,1780197042000,-200.0,0.000261,2]
[423531593,1780197042000,-500.0,0.00025809,2]
[423531591,1780197042000,-1264.08,0.00025786,2]
[423531595,1780197042000,-339.13746195,0.00025932,2]
[423531594,1780197042000,-150.0,0.00025858,4]
[423531600,1780197042000,-180.0450472,0.00026075,2]
[423531612,1780197042000,-150.0,0.00026283,4]
[423531597,1780197042000,-500.0,0.00025991,2]
[423531598,1780197042000,-500.0,0.00026,2]
[423531601,1780197042000,-150.0,0.00026098,4]
[423531603,1780197042000,-2988.0,0.000261,2]
[423531604,1780197042000,-300.14961083,0.000261,2]
[423531608,1780197042000,-150.0,0.00026158,4]
[423531609,1780197042000,-500.0,0.00026173,2]
[423531606,1780197042000,-312.94425027,0.000261,2]
[423531610,1780197042000,-578.0,0.00026192,3]
[423531605,1780197042000,-1918.0,0.000261,2]
[423531607,1780197042000,-1409.0,0.000261,2]
[423531613,1780197042000,-1045.5,0.00026296,2]
[423531599,1780197042000,-150.0,0.00026032,4]
[423531649,1780197042000,-187.52093,0.00026657,7]
[423531644,1780197042000,-150.0,0.00026577,4]
[423531646,1780197042000,-1669.00052443,0.00026654,2]
[423531668,1780197042000,-521309.0142615,0.00026754,2]
[423531672,1780197042000,-71849.81053122,0.00026754,2]
[423531676,1780197042000,-807.91327417,0.00026754,2]
[423531677,1780197042000,-339.88265974,0.00026754,2]
[423531674,1780197042000,-2289.21906532,0.00026754,2]
[423531675,1780197042000,-5284.2019003,0.00026754,2]
[423531673,1780197042000,-9561.50740717,0.00026754,2]
[423531679,1780197042000,-2545.17198398,0.00026754,2]
[423531678,1780197042000,-44700.0,0.00026754,2]
[423531680,1780197042000,-8755.2198667,0.00026754,2]
[423531681,1780197042000,-3454.3837694,0.00026754,2]
[423531670,1780197042000,-30858.5033095,0.00026754,2]
[423531682,1780197042000,-151.0,0.00026754,2]
[423531685,1780197042000,-226.726493,0.00026754,2]
[423531684,1780197042000,-226.726493,0.00026754,2]
[423531683,1780197042000,-152.557934,0.00026754,2]
[423531688,1780197042000,-153.271246,0.00026754,2]
[423531692,1780197042000,-151.0,0.00026754,2]
[423531690,1780197042000,-151.0,0.00026754,2]
[423531689,1780197042000,-151.0,0.00026754,2]
[423531691,1780197042000,-153.214325,0.00026754,2]
[423531687,1780197042000,-226.726493,0.00026754,2]
[423531640,1780197042000,-151.0,0.0002655,3]
[423531694,1780197042000,-151.0,0.00026754,2]
[423531686,1780197042000,-226.726493,0.00026754,2]
[423531669,1780197042000,-15449.3467468,0.00026754,2]
[423531693,1780197042000,-151.0,0.00026754,2]
[423531671,1780197042000,-3459.935677,0.00026754,2]
[423531667,1780197042000,-500.0,0.00026753,2]
[423531642,1780197042000,-153.0,0.0002655,3]
[423531643,1780197042000,-254.35668381,0.0002655,3]
[423531645,1780197042000,-500.0,0.00026596,31]
[423531648,1780197042000,-204.34353215,0.00026654,2]
[423531647,1780197042000,-420.16907782,0.00026654,2]
[423531650,1780197042000,-151.0,0.00026657,7]
[423531653,1780197042000,-500.0,0.00026659,2]
[423531661,1780197042000,-578.0,0.00026746,3]
[423531652,1780197042000,-500.0,0.00026659,2]
[423531651,1780197042000,-500.0,0.00026659,2]
[423531641,1780197042000,-151.0,0.0002655,3]
[423531655,1780197042000,-500.0,0.00026659,2]
[423531654,1780197042000,-500.0,0.00026659,2]
[423531662,1780197042000,-500.0,0.00026753,2]
[423531666,1780197042000,-500.0,0.00026753,2]
[423531665,1780197042000,-500.0,0.00026753,2]
[423531663,1780197042000,-500.0,0.00026753,2]
[423531664,1780197042000,-500.0,0.00026753,2]
[423531658,1780197042000,-167.0,0.00026678,31]
[423531659,1780197042000,-150.0,0.00026696,4]
[423531657,1780197042000,-339960.7383,0.0002666,2]
[423531656,1780197042000,-500.0,0.00026659,2]
[423531660,1780197042000,-500.0,0.00026718,2]
[423531728,1780197043000,-611.45639,0.00026754,2]
[423531729,1780197043000,-2266.997775,0.00026754,2]
[423531733,1780197043000,-278.60864077,0.00026754,2]
[423531734,1780197043000,-469.30051462,0.00026754,2]
[423531730,1780197043000,-611.45639,0.00026754,2]
[423531725,1780197043000,-12.47474852,0.00026754,2]
[423531732,1780197043000,-463.75556706,0.00026754,2]
[423531731,1780197043000,-1524.63356717,0.00026754,2]
[423531736,1780197043000,-475.80353924,0.00016751,2]
[423531737,1780197043000,-1093.93283163,0.00016751,2]
[423531742,1780197043000,-1118.937893,0.00026754,2]
[423531739,1780197043000,-151.0,0.00026754,2]
[423531735,1780197043000,-504.28224,0.00016751,2]
[423531740,1780197043000,-1118.937893,0.00026754,2]
[423531741,1780197043000,-1118.937893,0.00026754,2]
[423531744,1780197043000,-151.0,0.00026754,2]
[423531743,1780197043000,-1118.937893,0.00026754,2]
[423531756,1780197043000,-800.0,0.000268,9]
[423531757,1780197043000,-150.0,0.00026816,4]
[423531746,1780197043000,-151.0,0.00026754,2]
[423531727,1780197043000,-385.45587783,0.00026754,2]
[423531745,1780197043000,-151.0,0.00026754,2]
[423531738,1780197043000,-142.15587538,0.00026754,2]
[423531726,1780197043000,-1869.06714865,0.00026754,2]
[423531705,1780197043000,-276.304796,0.00026754,2]
[423531723,1780197043000,-151.38978692,0.00026754,2]
[423531747,1780197043000,-151.0,0.00026754,2]
[423531698,1780197043000,-648.370464,0.00026754,2]
[423531696,1780197043000,-648.370464,0.00026754,2]
[423531697,1780197043000,-812.002373,0.00026754,2]
[423531700,1780197043000,-648.370464,0.00026754,2]
[423531709,1780197043000,-151.0,0.00026754,2]
[423531699,1780197043000,-812.002373,0.00026754,2]
[423531701,1780197043000,-812.002373,0.00026754,2]
[423531703,1780197043000,-30611.6823032,0.00026754,2]
[423531711,1780197043000,-3085.472884,0.00026754,2]
[423531702,1780197043000,-648.370464,0.00026754,2]
[423531710,1780197043000,-3085.472884,0.00026754,2]
[423531704,1780197043000,-276.304796,0.00026754,2]
[423531708,1780197043000,-176.9481146,0.00026754,2]
[423531706,1780197043000,-276.304796,0.00026754,2]
[423531707,1780197043000,-276.304796,0.00026754,2]
[423531713,1780197043000,-3085.472884,0.00026754,2]
[423531712,1780197043000,-3085.472884,0.00026754,2]
[423531719,1780197043000,-2115.60798808,0.00026754,2]
[423531715,1780197043000,-1705.19622,0.00026754,2]
[423531716,1780197043000,-1705.19622,0.00026754,2]
[423531718,1780197043000,-1705.19622,0.00026754,2]
[423531714,1780197043000,-1705.19622,0.00026754,2]
[423531724,1780197043000,-611.45639,0.00026754,2]
[423531748,1780197043000,-189.53480845,0.00026759,2]
[423531695,1780197043000,-812.002373,0.00026754,2]
[423531751,1780197043000,-111869.48860406,0.0002676,2]
[423531776,1780197043000,-151.0,0.00027006,2]
[423531782,1780197043000,-150.0,0.00027123,2]
[423531784,1780197043000,-150.0,0.00027123,2]
[423531786,1780197043000,-500.0,0.00027123,2]
[423531785,1780197043000,-500.0,0.00027123,2]
[423531783,1780197043000,-500.0,0.00027123,2]
[423531788,1780197043000,-500.0,0.00027123,2]
[423531789,1780197043000,-150.0,0.00027123,2]
[423531793,1780197043000,-500.0,0.00027123,2]
[423531794,1780197043000,-250.0,0.00027123,2]
[423531790,1780197043000,-500.0,0.00027123,2]
[423531787,1780197043000,-500.0,0.00027123,2]
[423531792,1780197043000,-150.0,0.00027123,2]
[423531791,1780197043000,-500.0,0.00027123,2]
[423531797,1780197043000,-250.0,0.00027123,2]
[423531798,1780197043000,-500.0,0.00027123,2]
[423531796,1780197043000,-247.95923434,0.00027123,2]
[423531799,1780197043000,-500.0,0.00027123,2]
[423531800,1780197043000,-500.0,0.00027123,2]
[423531802,1780197043000,-500.0,0.00027123,2]
[423531803,1780197043000,-617.75409159,0.00027123,2]
[423531801,1780197043000,-250.0,0.00027123,2]
[423531749,1780197043000,-500.0,0.00026759,2]
[423531777,1780197043000,-2000.0,0.00027023,2]
[423531778,1780197043000,-150.0,0.00027034,4]
[423531795,1780197043000,-500.0,0.00027123,2]
[423531773,1780197043000,-174.445092,0.00027006,2]
[423531754,1780197043000,-220.75579503,0.0002676,31]
[423531775,1780197043000,-151.0,0.00027006,2]
[423531753,1780197043000,-151.0,0.0002676,2]
[423531752,1780197043000,-2091.300134,0.0002676,2]
[423531750,1780197043000,-500.0,0.00026759,2]
[423531755,1780197043000,-150.0,0.00026783,4]
[423531758,1780197043000,-150.0,0.00026846,4]
[423531760,1780197043000,-500.0,0.00026861,2]
[423531759,1780197043000,-284.99834462,0.00026851,2]
[423531764,1780197043000,-80.61754083,0.000269,9]
[423531766,1780197043000,-177.48994094,0.00026909,2]
[423531768,1780197043000,-1155.92135456,0.0002691,2]
[423531761,1780197043000,-500.0,0.000269,2]
[423531779,1780197043000,-150.0,0.00027055,4]
[423531767,1780197043000,-181.08010149,0.0002691,2]
[423531765,1780197043000,-224.01202128,0.000269,2]
[423531762,1780197043000,-629.17845917,0.000269,9]
[423531770,1780197043000,-150.0,0.00026936,4]
[423531774,1780197043000,-151.0,0.00027006,2]
[423531769,1780197043000,-325.31645304,0.0002691,2]
[423531781,1780197043000,-500.0,0.00027123,2]
[423531772,1780197043000,-151.0,0.00027006,2]
[423531780,1780197043000,-500.0,0.00027076,2]
[423531771,1780197043000,-150.0,0.00027,2]
[423531763,1780197043000,-390.204,0.000269,9]
[423531850,1780197044000,-4518.94256069,0.0002739,7]
[423531838,1780197044000,-1381.0,0.00027123,2]
[423531847,1780197044000,-578.0,0.00027301,4]
[423531851,1780197044000,-1000.0,0.00027397,2]
[423531845,1780197044000,-743.66291882,0.00027297,2]
[423531842,1780197044000,-500.0,0.00027252,2]
[423531846,1780197044000,-168.03174586,0.000273,30]
[423531843,1780197044000,-150.0,0.00027284,4]
[423531841,1780197044000,-150.0,0.00027175,4]
[423531840,1780197044000,-1402.62425275,0.00027123,2]
[423531853,1780197044000,-1000.0,0.00027397,2]
[423531844,1780197044000,-150.0,0.00027295,4]
[423531852,1780197044000,-1000.0,0.00027397,2]
[423531861,1780197044000,-1095.0,0.00027397,2]
[423531848,1780197044000,-4181.28482451,0.0002739,2]
[423531854,1780197044000,-1000.0,0.00027397,2]
[423531858,1780197044000,-1095.0,0.00027397,2]
[423531857,1780197044000,-1095.0,0.00027397,2]
[423531859,1780197044000,-1095.0,0.00027397,2]
[423531856,1780197044000,-1000.0,0.00027397,2]
[423531860,1780197044000,-1095.0,0.00027397,2]
[423531862,1780197044000,-1095.0,0.00027397,2]
[423531872,1780197044000,-1095.0,0.00027397,2]
[423531874,1780197044000,-1095.0,0.00027397,2]
[423531873,1780197044000,-1095.0,0.00027397,2]
[423531864,1780197044000,-1095.0,0.00027397,2]
[423531863,1780197044000,-1095.0,0.00027397,2]
[423531839,1780197044000,-1381.0,0.00027123,2]
[423531849,1780197044000,-8260.27473017,0.0002739,2]
[423531837,1780197044000,-1381.0,0.00027123,2]
[423531809,1780197044000,-500.0,0.00027123,2]
[423531832,1780197044000,-1381.0,0.00027123,2]
[423531808,1780197044000,-500.0,0.00027123,2]
[423531807,1780197044000,-500.0,0.00027123,2]
[423531804,1780197044000,-264.46226793,0.00027123,2]
[423531805,1780197044000,-449.27292382,0.00027123,2]
[423531806,1780197044000,-500.0,0.00027123,2]
[423531866,1780197044000,-1095.0,0.00027397,2]
[423531812,1780197044000,-500.0,0.00027123,2]
[423531813,1780197044000,-500.0,0.00027123,2]
[423531811,1780197044000,-500.0,0.00027123,2]
[423531818,1780197044000,-1381.0,0.00027123,2]
[423531817,1780197044000,-1381.0,0.00027123,2]
[423531815,1780197044000,-567.88562194,0.00027123,2]
[423531821,1780197044000,-1381.0,0.00027123,2]
[423531833,1780197044000,-1381.0,0.00027123,2]
[423531820,1780197044000,-1381.0,0.00027123,2]
[423531810,1780197044000,-500.0,0.00027123,2]
[423531822,1780197044000,-1381.0,0.00027123,2]
[423531836,1780197044000,-1381.0,0.00027123,2]
[423531827,1780197044000,-1381.0,0.00027123,2]
[423531825,1780197044000,-1381.0,0.00027123,2]
[423531834,1780197044000,-1381.0,0.00027123,2]
[423531835,1780197044000,-1381.0,0.00027123,2]
[423531823,1780197044000,-1381.0,0.00027123,2]
[423531826,1780197044000,-1381.0,0.00027123,2]
[423531830,1780197044000,-1381.0,0.00027123,2]
[423531828,1780197044000,-1381.0,0.00027123,2]
[423531829,1780197044000,-1381.0,0.00027123,2]
[423531831,1780197044000,-1381.0,0.00027123,2]
[423531819,1780197044000,-1381.0,0.00027123,2]
[423531869,1780197044000,-1095.0,0.00027397,2]
[423531824,1780197044000,-1381.0,0.00027123,2]
[423531867,1780197044000,-1095.0,0.00027397,2]
[423531902,1780197044000,-151.0,0.00027397,2]
[423531912,1780197044000,-200.0,0.00027397,90]
[423531904,1780197044000,-1126.364279,0.00027397,2]
[423531905,1780197044000,-1126.364279,0.00027397,2]
[423531909,1780197044000,-200.0,0.00027397,90]
[423531908,1780197044000,-1126.364279,0.00027397,2]
[423531907,1780197044000,-1126.364279,0.00027397,2]
[423531910,1780197044000,-200.0,0.00027397,90]
[423531906,1780197044000,-803.95,0.00027397,2]
[423531914,1780197044000,-200.0,0.00027397,90]
[423531917,1780197044000,-200.0,0.00027397,90]
[423531915,1780197044000,-200.0,0.00027397,90]
[423531926,1780197044000,-200.0,0.00027397,90]
[423531911,1780197044000,-200.0,0.00027397,90]
[423531916,1780197044000,-200.0,0.00027397,90]
[423531920,1780197044000,-200.0,0.00027397,90]
[423531918,1780197044000,-200.0,0.00027397,90]
[423531927,1780197044000,-200.0,0.00027397,90]
[423531925,1780197044000,-200.0,0.00027397,90]
[423531924,1780197044000,-200.0,0.00027397,90]
[423531922,1780197044000,-200.0,0.00027397,90]
[423531923,1780197044000,-200.0,0.00027397,90]
[423531928,1780197044000,-200.0,0.00027397,90]
[423531930,1780197044000,-200.0,0.00027397,90]
[423531932,1780197044000,-200.0,0.00027397,90]
[423531931,1780197044000,-200.0,0.00027397,90]
[423531929,1780197044000,-200.0,0.00027397,90]
[423531865,1780197044000,-1095.0,0.00027397,2]
[423531919,1780197044000,-200.0,0.00027397,90]
[423531913,1780197044000,-200.0,0.00027397,90]
[423531921,1780197044000,-200.0,0.00027397,90]
[423531894,1780197044000,-151.0,0.00027397,2]
[423531903,1780197044000,-151.0,0.00027397,2]
[423531870,1780197044000,-1095.0,0.00027397,2]
[423531868,1780197044000,-1095.0,0.00027397,2]
[423531871,1780197044000,-1095.0,0.00027397,2]
[423531875,1780197044000,-1095.0,0.00027397,2]
[423531878,1780197044000,-1095.0,0.00027397,2]
[423531883,1780197044000,-6005.54,0.00027397,2]
[423531882,1780197044000,-1500.0,0.00027397,2]
[423531881,1780197044000,-610.04725977,0.00027397,2]
[423531879,1780197044000,-1095.0,0.00027397,2]
[423531880,1780197044000,-1114.0235,0.00027397,2]
[423531886,1780197044000,-168.728794,0.00027397,2]
[423531887,1780197044000,-168.728794,0.00027397,2]
[423531877,1780197044000,-1095.0,0.00027397,2]
[423531876,1780197044000,-1095.0,0.00027397,2]
[423531885,1780197044000,-168.728794,0.00027397,2]
[423531896,1780197044000,-151.0,0.00027397,2]
[423531884,1780197044000,-168.728794,0.00027397,2]
[423531898,1780197044000,-1000.0,0.00027397,20]
[423531895,1780197044000,-151.0,0.00027397,2]
[423531893,1780197044000,-300.0,0.00027397,2]
[423531891,1780197044000,-1757.848905,0.00027397,2]
[423531888,1780197044000,-1021.28,0.00027397,2]
[423531897,1780197044000,-151.0,0.00027397,2]
[423531889,1780197044000,-1757.848905,0.00027397,2]
[423531892,1780197044000,-1757.848905,0.00027397,2]
[423531900,1780197044000,-151.0,0.00027397,2]
[423531899,1780197044000,-528.2,0.00027397,2]
[423531901,1780197044000,-151.0,0.00027397,2]
[423531890,1780197044000,-1757.848905,0.00027397,2]
[423531956,1780197045000,-200.0,0.00027397,90]
[423531955,1780197045000,-200.0,0.00027397,90]
[423531960,1780197045000,-200.0,0.00027397,90]
[423531959,1780197045000,-200.0,0.00027397,90]
[423531961,1780197045000,-200.0,0.00027397,90]
[423531962,1780197045000,-200.0,0.00027397,90]
[423531965,1780197045000,-15091.25,0.00027397,10]
[423531964,1780197045000,-18109.5,0.00027397,10]
[423531967,1780197045000,-1683.55707417,0.00027397,10]
[423531966,1780197045000,-10892.48292583,0.00027397,10]
[423531979,1780197045000,-500.0,0.000274,2]
[423531970,1780197045000,-574.554153,0.00027397,2]
[423531969,1780197045000,-574.554153,0.00027397,2]
[423531971,1780197045000,-500.0,0.00027399,2]
[423531973,1780197045000,-500.0,0.000274,2]
[423531974,1780197045000,-500.0,0.000274,2]
[423531972,1780197045000,-500.0,0.000274,2]
[423531975,1780197045000,-500.0,0.000274,2]
[423531978,1780197045000,-500.0,0.000274,2]
[423531958,1780197045000,-200.0,0.00027397,90]
[423531968,1780197045000,-574.554153,0.00027397,2]
[423531963,1780197045000,-237.435125,0.00027397,90]
[423531951,1780197045000,-200.0,0.00027397,90]
[423531953,1780197045000,-200.0,0.00027397,90]
[423531976,1780197045000,-500.0,0.000274,2]
[423531938,1780197045000,-200.0,0.00027397,90]
[423531934,1780197045000,-200.0,0.00027397,90]
[423531939,1780197045000,-200.0,0.00027397,90]
[423531933,1780197045000,-200.0,0.00027397,90]
[423531937,1780197045000,-200.0,0.00027397,90]
[423531935,1780197045000,-200.0,0.00027397,90]
[423531936,1780197045000,-200.0,0.00027397,90]
[423531941,1780197045000,-200.0,0.00027397,90]
[423531945,1780197045000,-200.0,0.00027397,90]
[423531944,1780197045000,-200.0,0.00027397,90]
[423531940,1780197045000,-200.0,0.00027397,90]
[423531942,1780197045000,-200.0,0.00027397,90]
[423531943,1780197045000,-200.0,0.00027397,90]
[423531947,1780197045000,-200.0,0.00027397,90]
[423531950,1780197045000,-200.0,0.00027397,90]
[423531946,1780197045000,-200.0,0.00027397,90]
[423531948,1780197045000,-200.0,0.00027397,90]
[423531949,1780197045000,-200.0,0.00027397,90]
[423531952,1780197045000,-200.0,0.00027397,90]
[423531954,1780197045000,-200.0,0.00027397,90]
[423531957,1780197045000,-200.0,0.00027397,90]
[423531977,1780197045000,-500.0,0.000274,2]
[423531988,1780197045000,-500.0,0.000274,2]
[423531983,1780197045000,-500.0,0.000274,2]
[423532005,1780197045000,-480.11,0.000275,7]
[423532001,1780197045000,-187.78006524,0.00027458,2]
[423532007,1780197045000,-231.3580677,0.00027534,7]
[423532012,1780197045000,-500.0,0.00027551,2]
[423532011,1780197045000,-151.0,0.00027549,7]
[423532013,1780197045000,-409.34530834,0.00027551,2]
[423532014,1780197045000,-13909.63206198,0.00027552,2]
[423532016,1780197045000,-650.0,0.00027552,2]
[423532015,1780197045000,-1018.67637272,0.00027552,2]
[423532017,1780197045000,-37780.53205576,0.00027552,2]
[423532019,1780197045000,-152.0,0.00026803,7]
[423532021,1780197045000,-6103.30567036,0.00027552,2]
[423532020,1780197045000,-574.554153,0.00027397,2]
[423532018,1780197045000,-200.0,0.00013384,2]
[423532026,1780197045000,-500.0,0.00027552,2]
[423532027,1780197045000,-932.0,0.00024641,2]
[423532022,1780197045000,-341.04,0.00027552,2]
[423532024,1780197045000,-443.9447679,0.00027552,2]
[423532023,1780197045000,-1663.90279215,0.00027552,2]
[423532025,1780197045000,-7523.22027482,0.00027552,2]
[423531985,1780197045000,-500.0,0.000274,2]
[423532004,1780197045000,-204.57005295,0.000275,2]
[423532006,1780197045000,-150.0,0.00027521,2]
[423532028,1780197045000,-8062.28399109,0.00027552,2]
[423531998,1780197045000,-213.0,0.00027415,2]
[423532002,1780197045000,-1093.81868511,0.00027458,2]
[423531984,1780197045000,-500.0,0.000274,2]
[423531982,1780197045000,-500.0,0.000274,2]
[423531980,1780197045000,-565.26,0.000274,2]
[423531981,1780197045000,-214.28336237,0.000274,2]
[423531997,1780197045000,-150.0,0.00027415,2]
[423531987,1780197045000,-500.0,0.000274,2]
[423531990,1780197045000,-500.0,0.000274,2]
[423531989,1780197045000,-500.0,0.000274,2]
[423531991,1780197045000,-500.0,0.000274,2]
[423531986,1780197045000,-500.0,0.000274,2]
[423531992,1780197045000,-500.0,0.000274,2]
[423532008,1780197045000,-251.84276215,0.00027534,7]
[423531996,1780197045000,-278.0,0.00027415,2]
[423532003,1780197045000,-442.22492137,0.00027458,2]
[423532009,1780197045000,-154.30650874,0.00027534,7]
[423532010,1780197045000,-167.37018308,0.00027534,7]
[423532000,1780197045000,-500.0,0.00027427,2]
[423531994,1780197045000,-847.88,0.000274,2]
[423531995,1780197045000,-2511.0,0.000274,2]
[423531993,1780197045000,-500.0,0.000274,2]
[423531999,1780197045000,-150.0,0.00027415,7]
[423532039,1780197046000,-1000.0,0.00027397,2]
[423532042,1780197046000,-1000.0,0.00027397,2]
[423532046,1780197046000,-3736.56966853,0.00027552,2]
[423532044,1780197046000,-1000.0,0.00027397,2]
[423532045,1780197046000,-1000.0,0.00027397,2]
[423532033,1780197046000,-2074.01861087,0.00018964,2]
[423532035,1780197046000,-228.895715,0.00021042,2]
[423532047,1780197046000,-65166.45,0.00027552,2]
[423532037,1780197046000,-1000.0,0.00027397,2]
[423532049,1780197046000,-35086.85573078,0.00027552,2]
[423532050,1780197046000,-80810.21465527,0.00027552,2]
[423532051,1780197046000,-501.0,0.00027552,2]
[423532052,1780197046000,-25592.54695369,0.00027552,2]
[423532054,1780197046000,-1151.30067516,0.00027552,2]
[423532056,1780197046000,-3429.6613836,0.00027552,2]
[423532053,1780197046000,-1110.9295,0.00027552,2]
[423532057,1780197046000,-494.61771879,0.00027552,2]
[423532055,1780197046000,-1000.0,0.00027397,2]
[423532048,1780197046000,-10480.03,0.00027397,10]
[423532191,1780198140000,1000.0,0.0002808,120]
[423532207,1780198232000,-283.0,9.19e-05,2]
[423532208,1780198232000,-229.09818281,9.542e-05,2]
[423532210,1780198232000,-188.16,9.729e-05,2]
[423532213,1780198232000,-2830.0,9.763e-05,2]
[423532214,1780198232000,-188.16,9.783e-05,2]
[423532212,1780198232000,-396.0,9.754e-05,2]
[423532211,1780198232000,-279.0,9.729e-05,2]
[423532215,1780198232000,-1200.0,9.785e-05,2]
[423532201,1780198232000,-168.21,9.13e-05,2]
[423532216,1780198232000,-1200.0,9.786e-05,2]
[423532221,1780198232000,-2817.62416679,9.788e-05,2]
[423532209,1780198232000,-200.0,9.689e-05,2]
[423532203,1780198232000,-219.14160711,9.187e-05,2]
[423532204,1780198232000,-200.85839289,9.187e-05,2]
[423532202,1780198232000,-780.85839289,9.187e-05,2]
[423532206,1780198232000,-200.0,9.187e-05,2]
[423532200,1780198232000,-66.72471572,9.079e-05,2]
[423532199,1780198232000,-253.27528428,9.079e-05,2]
[423532195,1780198232000,-740.01793856,8.839e-05,2]
[423532197,1780198232000,-270.51997311,9.079e-05,2]
[423532196,1780198232000,-571.39355477,8.839e-05,2]
[423532198,1780198232000,-158.90404089,9.079e-05,2]
[423532194,1780198232000,-688.58850667,8.839e-05,2]
[423532217,1780198232000,-172.19519862,9.786e-05,2]
[423532205,1780198232000,-28.23978994,9.187e-05,2]
[423532218,1780198232000,-115.80480138,9.786e-05,2]
[423532241,1780198232000,-500.0,9.893e-05,2]
[423532219,1780198232000,-300.0,9.786e-05,2]
[423532220,1780198232000,-150.0,9.786e-05,2]
[423532246,1780198232000,-13508.45535382,9.894e-05,2]
[423532244,1780198232000,-8045.54526625,9.894e-05,2]
[423532236,1780198232000,-500.0,9.893e-05,2]
[423532239,1780198232000,-302.69818156,9.893e-05,2]
[423532235,1780198232000,-294.94790898,9.893e-05,2]
[423532237,1780198232000,-500.0,9.893e-05,2]
[423532245,1780198232000,-500.0,9.186e-05,2]
[423532238,1780198232000,-500.0,9.893e-05,2]
[423532232,1780198232000,-188.16,9.89e-05,2]
[423532243,1780198232000,-69327.00209089,9.894e-05,2]
[423532242,1780198232000,-622.69126824,9.893e-05,2]
[423532240,1780198232000,-500.0,9.893e-05,2]
[423532233,1780198232000,-500.0,9.893e-05,2]
[423532225,1780198232000,-957.0,9.824e-05,2]
[423532230,1780198232000,-1951.0,9.855e-05,2]
[423532234,1780198232000,-375.0837012,9.893e-05,2]
[423532229,1780198232000,-1833.0,9.843e-05,2]
[423532223,1780198232000,-760.53387813,9.788e-05,2]
[423532224,1780198232000,-2976.5187219,9.788e-05,2]
[423532228,1780198232000,-188.16,9.837e-05,2]
[423532227,1780198232000,-13608.0,9.836e-05,2]
[423532226,1780198232000,-847.0,9.836e-05,2]
[423532231,1780198232000,-327.0,9.863e-05,2]